bitfinex-derivatives/quotes_SOLF0:USTF0_20241229
["timestamp","ask_amount","ask_price","bid_price","bid_amount"]
[1735497399884,8.28689955,192.78,192.75,3.06]
[1735497402084,2.5977,192.82,192.75,11.34689955]
[1735497402282,8.28689955,192.83,192.75,11.34689955]
[1735497402480,8.28689955,192.83,192.79,2.598]
[1735497403382,3.85333341,192.84,192.81,2.5977]
[1735497403582,3.85333341,192.84,192.8,3.06]
[1735497404483,3.85333341,192.84,192.82,2.5976]
[1735497404680,10.88379955,192.87,192.81,8.28689955]
[1735497405285,8.28689955,192.87,192.81,8.28689955]
[1735497406477,8.28689955,192.87,192.84,2.5973]
[1735497407382,10.88379955,192.87,192.84,2.5973]
[1735497408286,10.88379955,192.87,192.81,8.28689955]
[1735497408486,10.88379955,192.87,192.83,2.5974]
[1735497409180,8.28689955,192.87,192.85,2.5972]
[1735497409584,57.31543969,192.94,192.85,11.28689955]
[1735497409785,59.91143969,192.94,192.9,2.5965]
[1735497409983,57.31543969,192.94,192.9,3.0]
[1735497410284,57.31543969,192.95,192.9,3.0]
[1735497410483,57.31543969,192.95,192.91,8.28689955]
[1735497410680,57.31543969,192.95,192.92,2.5961]
[1735497411678,8.28689955,192.97,192.91,8.28689955]
[1735497411880,8.28689955,192.97,192.93,2.596]
[1735497412291,4.1831,192.99,192.93,2.596]
[1735497413192,4.1831,192.99,192.94,2.5959]
[1735497413384,1.5877,192.99,192.94,2.5959]
[1735497413589,2.5955,192.98,192.92,2.5961]
[1735497413784,2.5955,192.98,192.9,3.0]
[1735497414183,2.5955,192.98,192.94,2.5959]
[1735497414591,2.5955,192.98,192.95,3.0]
[1735497417093,2.5957,192.96,192.91,2.5962]
[1735497417296,2.5957,192.96,192.92,3.0]
[1735497417894,2.5957,192.96,192.91,2.5962]
[1735497418098,2.5957,192.96,192.92,3.0]
[1735497421104,12.92214778,192.98,192.92,3.0]
[1735497421400,12.92214778,192.98,192.9,3.0]
[1735497421604,12.92214778,192.98,192.86,1.5183]
[1735497421806,2.5962,192.93,192.88,2.5968]
[1735497422304,2.596,192.94,192.89,2.5965]
[1735497422505,2.596,192.94,192.87,3.0]
[1735497422506,12.92214778,192.98,192.88,12.92214778]
[1735497422697,1.5877,192.99,192.88,12.92214778]
[1735497424105,12.92214778,193.01,192.89,4.605]
[1735497424406,12.92214778,193.01,192.91,12.92214778]
[1735497424607,2.5954,192.99,192.91,12.92214778]
[1735497425007,12.92214778,193.04,192.91,12.92214778]
[1735497425709,2.5949,193.02,192.97,2.5954]
[1735497426007,2.5949,193.02,192.97,5.5954]
[1735497426209,2.595,193.01,192.97,5.5954]
[1735497426512,12.92214778,193.04,192.97,5.5954]
[1735497426809,2.5949,193.02,192.97,5.5954]
[1735497427209,2.5949,193.02,192.98,2.5954]
[1735497431410,2.5948,193.03,192.99,2.5952]
[1735497432403,12.92214778,193.04,192.97,3.0]
[1735497432609,12.92214778,193.04,192.95,3.0]
[1735497432810,12.92214778,193.01,192.89,1.605]
[1735497433021,2.5958,192.95,192.92,3.0]
[1735497433607,12.92214778,192.98,192.92,3.0]
[1735497433811,2.5958,192.96,192.92,5.5961]
[1735497435116,4.138,193.0,192.92,11.27156796]
[1735497435318,2.5953,193.0,192.94,8.27156796]
[1735497435617,2.5953,193.0,192.96,2.5956]
[1735497435809,8.27156796,193.01,192.94,8.27156796]
[1735497436611,1.4758,193.05,192.94,8.27156796]
[1735497436810,8.27156796,193.04,192.96,8.27156796]
[1735497437013,8.27156796,193.04,192.97,3.0]
[1735497437210,2.5949,193.02,192.99,2.5953]
[1735497437816,8.27156796,193.04,192.99,2.5953]
[1735497438018,2.5948,193.03,192.99,2.5953]
[1735497438818,2.5948,193.03,192.97,3.0]
[1735497439015,2.5948,193.03,193.0,2.5951]
[1735497440121,2.5948,193.03,192.99,2.5953]
[1735497441123,2.5949,193.02,192.99,2.5953]
[1735497442123,8.27156796,193.02,192.93,1.4968]
[1735497442323,8.27156796,192.98,192.94,3.0]
[1735497442626,8.27156796,192.98,192.9,8.27156796]
[1735497442822,8.27156796,192.98,192.93,3.0]
[1735497443018,5.55867488,193.06,192.93,3.0]
[1735497443222,8.27156796,192.99,192.93,3.0]
[1735497443616,8.27156796,192.99,192.92,8.27156796]
[1735497443820,8.27156796,193.01,192.94,8.27156796]
[1735497444925,10.86666796,193.01,192.97,2.5954]
[1735497445623,8.27156796,193.01,192.98,5.5954]
[1735497446431,2.5949,193.02,192.99,2.5953]
[1735497446630,2.5949,193.02,192.84,8.67814012]
[1735497446631,8.27156796,193.0,192.91,3.0]
[1735497446831,8.27156796,192.98,192.92,3.0]
[1735497447426,2.5957,192.97,192.93,2.596]
[1735497447827,2.5957,192.97,192.92,3.0]
[1735497448428,10.86706796,192.98,192.94,2.5959]
[1735497452134,10.86686796,193.0,192.96,2.5956]
[1735497452330,8.27156796,193.0,192.93,8.27156796]
[1735497452527,8.27156796,193.02,192.97,3.0]
[1735497453426,2.595,193.01,192.97,5.5954]
[1735497454131,2.5948,193.03,193.0,2.5951]
[1735497454333,2.5948,193.03,192.97,11.27156796]
[1735497455428,2.5948,193.03,192.99,2.5952]
[1735497456337,2.5946,193.04,192.97,11.27156796]
[1735497456538,8.27156796,193.01,192.97,3.0]
[1735497456932,10.86656796,193.01,192.97,5.5955]
[1735497457133,8.27156796,193.01,192.97,3.0]
[1735497457839,2.5953,193.0,192.97,3.0]
[1735497458734,2.5953,193.0,192.97,5.5955]
[1735497459031,2.5953,193.0,192.97,3.0]
[1735497459840,8.27156796,193.01,192.97,3.0]
[1735497460045,12.09940779,193.04,192.97,3.0]
[1735497460228,8.27156796,193.01,192.97,3.0]
[1735497460434,8.27156796,193.03,192.97,3.0]
[1735497461041,10.86636796,193.03,193.0,2.5951]
[1735497461530,2.5948,193.03,193.0,2.5951]
[1735497462442,10.86616796,193.04,193.0,2.5951]
[1735497464441,2.5948,193.03,193.0,2.5951]
[1735497467446,8.27156796,193.04,193.01,2.5949]
[1735497470449,10.86616796,193.04,193.01,2.5949]
[1735497471346,10.86616796,193.04,193.0,2.5952]
[1735497471550,2.5949,193.03,192.97,3.0]
[1735497471946,2.5949,193.03,192.99,2.5953]
[1735497477158,2.5949,193.03,193.0,2.5952]
[1735497478061,14.3109168,193.06,192.98,8.27156796]
[1735497478249,22.58248476,193.06,192.97,3.0]
[1735497478559,22.58248476,193.06,192.98,8.27156796]
[1735497478760,2.5946,193.05,193.01,2.595]
[1735497480959,5.55867488,193.06,193.02,3.0]
[1735497481162,5.55867488,193.06,193.03,3.0]
[1735497481762,5.55867488,193.06,193.04,2.5946]
[1735497483563,13.83024284,193.06,193.03,3.0]
[1735497483866,8.27156796,193.04,193.03,3.0]
[1735497484054,10.86626796,193.04,193.0,2.5951]
[1735497484662,2.5948,193.03,193.0,2.5951]
[1735497485764,10.86626796,193.04,193.0,2.5951]
[1735497487968,2.5947,193.04,193.0,2.5951]
[1735497488765,2.5947,193.04,193.01,2.595]
[1735497489664,13.83024284,193.06,193.01,2.595]
[1735497489863,5.55867488,193.06,193.04,2.5946]
[1735497490266,5.55867488,193.06,193.04,5.5946]
[1735497492366,5.55867488,193.06,192.94,3.0646]
[1735497492367,8.27156796,193.05,193.0,3.0]
[1735497493073,2.5947,193.04,193.0,2.5951]
[1735497493372,8.27156796,193.03,192.97,3.0]
[1735497493567,2.5951,193.01,192.97,5.5954]
[1735497493872,8.27156796,193.03,192.97,3.0]
[1735497494972,2.5948,193.03,192.97,11.27156796]
[1735497495970,8.27156796,193.04,192.97,11.27156796]
[1735497495971,10.86626796,193.04,192.97,11.27156796]
[1735497496563,10.86626796,193.04,192.93,1.5052]
[1735497496564,10.86626796,193.04,192.99,2.5953]
[1735497497771,2.5948,193.03,192.99,2.5953]
[1735497499763,13.83024284,193.06,192.99,8.27156796]
[1735497501066,2.5945,193.05,193.01,2.595]
[1735497502173,2.5948,193.03,192.98,3.0]
[1735497502373,8.27156796,193.02,192.98,3.0]
[1735497502772,5.55867488,193.06,192.98,3.0]
[1735497502773,8.27156796,193.05,192.98,3.0]
[1735497502973,8.27156796,193.05,192.99,8.27156796]
[1735497503277,2.5946,193.04,193.0,2.5951]
[1735497503475,8.27156796,193.05,192.99,8.27156796]
[1735497503776,5.55867488,193.06,192.99,8.27156796]
[1735497504078,2.5945,193.05,193.01,2.595]
[1735497505778,2.5943,193.07,193.03,2.5947]
[1735497505975,2.5943,193.07,193.03,5.5747]
[1735497506378,10.86586796,193.07,193.03,5.5747]
[1735497510079,19.62058037,193.07,193.03,5.5747]
[1735497510575,8.75471241,193.07,193.04,2.5946]
[1735497510776,8.75471241,193.07,193.03,2.98]
[1735497511080,72.00313143,193.08,193.03,11.25156796]
[1735497511379,59.90953969,193.08,193.03,2.98]
[1735497511580,59.90953969,193.08,193.04,2.5946]
[1735497512479,59.90953969,193.08,193.03,2.98]
[1735497512480,8.27156796,193.05,193.03,2.98]
[1735497513475,2.5946,193.04,193.03,2.98]
[1735497513670,8.75479763,193.1,193.03,2.98]
[1735497513875,8.27156796,193.08,193.03,2.98]
[1735497514278,2.5944,193.06,193.03,5.5747]
[1735497524304,58.78993969,193.11,193.03,2.98]
[1735497524500,2.5941,193.08,193.05,2.5945]
[1735497524705,10.86566796,193.08,193.05,2.5945]
[1735497531213,8.75112778,193.13,193.04,8.27156796]
[1735497531416,17.02269574,193.13,193.06,8.27156796]
[1735497531611,8.27156796,193.13,193.06,8.27156796]
[1735497532208,10.86506796,193.13,193.09,2.5938]
[1735497532516,17.02448406,193.13,193.09,2.96]
[1735497532716,64.15911573,193.15,193.11,2.5936]
[1735497533215,61.56591573,193.15,193.09,2.96]
[1735497533515,2.5935,193.13,193.09,5.5539]
[1735497535515,4.25047604,193.15,193.09,2.96]
[1735497535815,6.84367604,193.15,193.1,10.86536796]
[1735497536416,4.25047604,193.15,193.1,8.27156796]
[1735497538514,6.84367604,193.15,193.11,2.5935]
[1735497550129,15.115244,193.15,193.11,2.5935]
[1735497550829,12.522044,193.15,193.08,8.27156796]
[1735497551130,8.27156796,193.09,193.03,2.96]
[1735497551928,2.5941,193.08,193.04,2.5946]
[1735497552129,8.27156796,193.07,193.04,2.5946]
[1735497553931,8.27156796,193.09,193.04,2.5946]
[1735497554129,8.27156796,193.1,193.06,2.5943]
[1735497556438,2.594,193.09,193.06,2.5943]
[1735497572147,8.27156796,193.1,193.03,2.96]
[1735497572348,2.5943,193.07,193.04,2.5945]
[1735497574851,11.81502938,193.14,193.03,11.23156796]
[1735497575043,8.27156796,193.1,193.06,2.5942]
[1735497576551,2.594,193.09,193.06,2.5942]
[1735497583560,10.34604748,193.14,193.08,2.594]
[1735497583754,8.27156796,193.13,193.08,2.594]
[1735497583956,2.5937,193.12,193.08,2.594]
[1735497586559,2.5934,193.13,193.09,2.5939]
[1735497589056,2.5934,193.13,193.09,2.94]
[1735497589861,57.5818542,193.16,193.09,11.21156796]
[1735497590055,8.27156796,193.15,193.09,11.21156796]
[1735497591463,2.5934,193.13,193.1,2.5938]
[1735497593061,2.5933,193.14,193.1,2.5938]
[1735497594060,2.5931,193.16,193.12,2.5935]
[1735497594261,8.27156796,193.17,193.09,11.21156796]
[1735497594875,2.5933,193.15,193.11,10.86516796]
[1735497595268,8.27156796,193.18,193.11,8.27156796]
[1735497595562,2.5931,193.16,193.13,2.5934]
[1735497599466,10.86466796,193.16,193.12,2.5935]
[1735497601562,10.86486796,193.14,193.11,2.5936]
[1735497601762,8.27156796,193.14,193.07,1.4716]
[1735497602071,8.27156796,193.12,193.07,2.94]
[1735497602874,8.27156796,193.14,193.08,8.27156796]
[1735497603271,10.86486796,193.14,193.09,2.5938]
[1735497603471,10.86486796,193.14,193.08,8.27156796]
[1735497603871,2.5933,193.14,193.08,8.27156796]
[1735497604072,2.5933,193.14,193.09,2.5938]
[1735497604273,2.5933,193.14,193.08,8.27156796]
[1735497604574,2.5933,193.14,193.1,2.5937]
[1735497604773,2.5931,193.16,193.1,8.27156796]
[1735497605471,2.5931,193.16,193.12,2.5935]
[1735497606066,8.27156796,193.15,193.12,2.5935]
[1735497606669,10.86476796,193.15,193.12,2.5935]
[1735497606977,8.27156796,193.15,193.08,8.27156796]
[1735497608077,2.5934,193.14,193.1,2.5938]
[1735497613683,8.27156796,193.15,193.08,8.27156796]
[1735497613885,57.5818542,193.2,193.12,2.5935]
[1735497614085,8.27156796,193.17,193.12,2.5935]
[1735497614482,8.27156796,193.17,193.12,5.5335]
[1735497615485,2.5931,193.16,193.12,5.5335]
[1735497617792,10.86466796,193.16,193.12,5.5335]
[1735497617991,2.5931,193.16,193.12,5.5335]
[1735497618589,8.27156796,193.17,193.12,2.94]
[1735497618791,69.68356206,193.19,193.14,8.27156796]
[1735497619790,57.5818542,193.19,193.14,8.27156796]
[1735497619994,57.5818542,193.2,193.14,8.27156796]
[1735497620399,2.5926,193.19,193.15,2.593]
[1735497624298,2.5925,193.2,193.16,2.5929]
[1735497625392,8.27156796,193.21,193.14,8.27156796]
[1735497625596,4.24890191,193.22,193.17,2.94]
[1735497625796,4.24890191,193.22,193.18,11.21156796]
[1735497625993,4.24890191,193.22,193.19,2.94]
[1735497626188,4.24890191,193.22,193.2,2.5923]
[1735497626691,69.69124168,193.23,193.2,2.5923]
[1735497627297,65.85342216,193.27,193.2,8.27156796]
[1735497627496,65.85342216,193.27,193.22,8.27156796]
[1735497628296,2.5917,193.26,193.22,10.86376796]
[1735497628597,2.5917,193.26,193.22,2.5922]
[1735497631897,2.5918,193.25,193.22,2.5922]
[1735497633803,2.592,193.24,193.21,2.5923]
[1735497634100,8.27156796,193.23,193.17,2.94]
[1735497634294,8.27156796,193.19,193.13,3.0811]
[1735497634495,8.27156796,193.17,193.09,8.27156796]
[1735497634701,8.27156796,193.15,193.11,2.94]
[1735497635798,4.721,193.22,193.11,5.5337]
[1735497635799,2.5931,193.16,193.11,5.5337]
[1735497635993,2.5931,193.16,193.11,2.94]
[1735497636195,8.27156796,193.17,193.12,8.27156796]
[1735497636405,2.5929,193.17,193.13,2.5934]
[1735497636602,8.27156796,193.19,193.13,2.5934]
[1735497637306,8.27156796,193.19,193.12,2.5935]
[1735497638400,2.593,193.16,193.12,2.5935]
[1735497639001,2.5929,193.17,193.13,10.86496796]
[1735497640000,8.27156796,193.19,193.13,8.27156796]
[1735497640206,10.86426796,193.19,193.15,2.5931]
[1735497640610,2.5927,193.19,193.15,2.5931]
[1735497640902,2.5927,193.19,193.16,2.94]
[1735497641401,2.5925,193.21,193.16,2.94]
[1735497641904,6.78141449,193.22,193.17,8.27156796]
[1735497642100,4.18921449,193.22,193.19,8.27156796]
[1735497642299,8.27156796,193.25,193.19,8.27156796]
[1735497642607,2.5918,193.25,193.22,2.5922]
[1735497643506,2.5918,193.25,193.21,13.80386796]
[1735497644304,2.5918,193.25,193.21,5.5323]
[1735497644809,2.5917,193.26,193.22,2.5922]
[1735497645505,8.27156796,193.27,193.21,2.94]
[1735497645704,2.5918,193.25,193.21,5.5323]
[1735497646703,8.27156796,193.23,193.21,2.94]
[1735497648509,2.5922,193.22,193.21,2.94]
[1735497654011,8.27156796,193.23,193.16,2.83982018]
[1735497654314,8.27156796,193.2,193.14,2.94]
[1735497654518,2.5928,193.18,193.14,5.5332]
[1735497654921,8.27156796,193.18,193.11,8.27156796]
[1735497655120,2.593,193.16,193.12,5.5335]
[1735497663530,2.5933,193.15,193.12,2.94]
[1735497663825,8.27156796,193.16,193.12,2.94]
[1735497665133,2.5932,193.15,193.12,2.94]
[1735497666034,2.593,193.16,193.12,5.5334]
[1735497666234,2.593,193.16,193.12,13.80496796]
[1735497666435,2.593,193.16,193.12,5.5334]
[1735497668228,2.593,193.16,193.13,2.5934]
[1735497668735,2.5929,193.17,193.13,2.5934]
[1735497671834,2.5929,193.17,193.12,2.94]
[1735497672137,2.5929,193.17,193.14,2.5932]
[1735497679447,10.86426796,193.18,193.15,2.5931]
[1735497680247,8.27156796,193.18,193.15,2.5931]
[1735497680646,8.27156796,193.18,193.11,11.21156796]
[1735497681948,8.27156796,193.18,193.15,2.593]
[1735497682448,8.27156796,193.18,193.16,2.94]
[1735497684254,10.86436796,193.18,193.16,2.94]
[1735497684650,8.27156796,193.18,193.16,2.94]
[1735497689453,2.5927,193.19,193.16,2.94]
[1735497689653,2.5927,193.19,193.16,5.533]
[1735497691254,2.5924,193.21,193.17,2.5928]
[1735497691454,10.86396796,193.21,193.17,2.5928]
[1735497692859,8.27156796,193.21,193.18,2.5927]
[1735497694056,10.86396796,193.21,193.17,2.5928]
[1735497698159,8.27156796,193.19,193.17,2.5928]
[1735497698560,8.27156796,193.19,193.16,2.94]
[1735497698760,8.27156796,193.19,193.16,5.533]
[1735497699355,8.27156796,193.17,193.08,3.0845]
[1735497699558,8.27156796,193.15,193.09,11.21156796]
[1735497700564,8.27156796,193.15,193.12,2.5934]
[1735497701959,2.593,193.16,193.13,2.5934]
[1735497702371,4.19655263,193.23,193.11,8.27156796]
[1735497702558,8.27156796,193.19,193.11,8.27156796]
[1735497703162,2.5928,193.18,193.14,2.5932]
[1735497703366,2.5928,193.18,193.14,5.5332]
[1735497707970,2.5928,193.18,193.14,2.5932]
[1735497708174,2.5928,193.18,193.14,5.5332]
[1735497709764,2.5931,193.16,193.14,2.94]
[1735497711772,8.27156796,193.15,193.1,2.94]
[1735497713376,2.5936,193.12,193.09,5.5339]
[1735497713671,8.27156796,193.13,193.09,5.5339]
[1735497713872,11.99558766,193.18,193.09,2.94]
[1735497714072,8.27156796,193.17,193.1,8.27156796]
[1735497714469,2.5931,193.16,193.12,2.5935]
[1735497716969,2.5928,193.18,193.14,2.5932]
[1735497717167,8.27156796,193.18,193.14,5.5332]
[1735497717569,10.86436796,193.18,193.14,5.5332]
[1735497719175,2.593,193.17,193.14,5.5332]
[1735497723581,2.593,193.17,193.14,2.5932]
[1735497723780,8.27156796,193.16,193.14,2.5932]
[1735497728082,8.27156796,193.16,193.12,2.94]
[1735497728280,8.27156796,193.16,193.13,2.5934]
[1735497728586,10.86466796,193.16,193.12,2.94]
[1735497728887,8.27156796,193.16,193.12,2.94]
[1735497730193,2.5932,193.15,193.12,2.94]
[1735497733390,8.27156796,193.16,193.12,2.94]
[1735497733596,2.5931,193.15,193.12,2.94]
[1735497734595,2.5931,193.15,193.11,2.5936]
[1735497734791,2.5931,193.15,193.11,5.5336]
[1735497739500,2.5931,193.15,193.11,2.94]
[1735497739699,2.5931,193.15,193.12,2.5935]
[1735497740102,77.96167739,193.2,193.12,8.27156796]
[1735497740297,8.27156796,193.2,193.12,8.27156796]
[1735497740898,8.27156796,193.2,193.11,2.94]
[1735497740899,8.27156796,193.2,193.14,8.27156796]
[1735497742103,10.86416796,193.2,193.16,2.593]
[1735497742309,10.86416796,193.2,193.16,5.533]
[1735497742498,8.27156796,193.18,193.12,3.1094]
[1735497742700,8.27156796,193.16,193.12,2.94]
[1735497742899,8.27156796,193.14,193.12,2.94]
[1735497743098,2.5934,193.13,193.12,2.94]
[1735497746400,2.5934,193.13,193.09,2.5939]
[1735497746596,2.5934,193.13,193.1,2.94]
[1735497747102,8.27156796,193.14,193.1,2.94]
[1735497747706,8.27156796,193.14,193.11,2.5937]
[1735497748107,8.27156796,193.14,193.1,2.94]
[1735497748304,8.27156796,193.12,193.1,2.94]
[1735497748606,8.27156796,193.12,193.08,2.94]
[1735497748804,8.92222354,193.18,193.07,2.94]
[1735497748805,8.27156796,193.1,193.07,2.94]
[1735497750405,10.86536796,193.1,193.07,2.94]
[1735497750711,8.27156796,193.14,193.07,11.21156796]
[1735497751310,8.27156796,193.14,193.1,2.5937]
[1735497751805,2.5936,193.12,193.07,11.21156796]
[1735497752313,2.5936,193.12,193.07,8.27156796]
[1735497752513,2.5936,193.12,193.08,2.94]
[1735497753518,2.5936,193.12,193.09,2.5939]
[1735497753811,10.86516796,193.12,193.04,3.1301]
[1735497754012,10.86516796,193.12,193.08,2.594]
[1735497754910,10.86516796,193.12,193.09,2.5939]
[1735497755312,8.27156796,193.12,193.09,2.5939]
[1735497755514,2.5934,193.13,193.1,2.94]
[1735497756114,8.27156796,193.14,193.1,2.94]
[1735497756311,2.5936,193.12,193.1,2.94]
[1735497756506,10.86516796,193.12,193.1,2.94]
[1735497763524,2.5936,193.12,193.1,2.94]
[1735497763714,2.5934,193.13,193.1,5.5338]
[1735497764719,2.5933,193.15,193.11,2.5936]
[1735497764930,2.5933,193.15,193.1,11.21156796]
[1735497765613,2.5933,193.14,193.11,2.5936]
[1735497765812,10.86486796,193.14,193.11,2.5936]
[1735497773327,8.27156796,193.16,193.1,2.94]
[1735497773530,8.27156796,193.17,193.1,11.21156796]
[1735497773930,8.27156796,193.17,193.15,2.5931]
[1735497774227,8.27156796,193.17,193.15,5.5331]
[1735497780333,2.5928,193.18,193.15,5.5331]
[1735497784539,2.5931,193.16,193.12,2.5935]
[1735497784836,8.27156796,193.15,193.08,8.27156796]
[1735497785041,8.27156796,193.15,193.09,2.94]
[1735497786540,2.5934,193.13,193.1,2.5938]
[1735497787142,8.27156796,193.16,193.09,2.94]
[1735497787342,8.27156796,193.16,193.1,8.27156796]
[1735497788543,8.27156796,193.16,193.12,2.5934]
[1735497789144,8.27156796,193.16,193.13,2.5934]
[1735497790138,10.86456796,193.16,193.13,2.5934]
[1735497790449,8.27156796,193.16,193.13,2.5934]
[1735497794048,8.27156796,193.18,193.12,2.94]
[1735497794247,2.5927,193.19,193.12,11.21156796]
[1735497794449,8.27156796,193.2,193.12,11.21156796]
[1735497794846,10.86406796,193.2,193.16,2.5929]
[1735497795548,61.77840683,193.23,193.05,40.16211325]
[1735497795549,6.78865263,193.23,193.19,2.5926]
[1735497795748,15.06022059,193.23,193.19,2.94]
[1735497796547,4.19655263,193.23,193.19,2.94]
[1735497796852,10.86346796,193.25,193.19,2.94]
[1735497797552,10.86346796,193.25,193.21,2.5922]
[1735497803261,2.5919,193.25,193.19,2.94]
[1735497803662,2.5919,193.25,193.21,2.5922]
[1735497805965,2.592,193.24,193.21,2.5923]
[1735497806761,2.592,193.24,193.16,3.1043]
[1735497807065,8.27156796,193.2,193.14,8.27156796]
[1735497807264,8.27156796,193.2,193.15,2.94]
[1735497807467,2.5928,193.18,193.15,2.94]
[1735497808564,10.86416796,193.2,193.15,5.5331]
[1735497808868,8.27156796,193.2,193.15,5.5331]
[1735497810464,2.5927,193.19,193.15,5.5331]
[1735497811358,2.5927,193.19,193.16,2.94]
[1735497812264,2.5927,193.19,193.16,5.533]
[1735497813472,10.86406796,193.2,193.16,5.533]
[1735497818969,10.86406796,193.2,193.16,2.593]
[1735497819169,10.86406796,193.2,193.17,2.94]
[1735497819769,2.5925,193.2,193.17,2.94]
[1735497819967,2.5922,193.22,193.19,2.5926]
[1735497822076,10.86396796,193.21,193.18,2.5927]
[1735497822267,8.27156796,193.21,193.17,2.94]
[1735497822671,2.5925,193.2,193.17,2.94]
[1735497826785,2.5925,193.2,193.17,5.5328]
[1735497827287,8.27156796,193.21,193.18,2.5926]
[1735497827495,8.27156796,193.23,193.17,2.94]
[1735497828388,2.5922,193.22,193.19,2.5925]
[1735497832096,10.86406796,193.21,193.18,2.5927]
[1735497832296,10.86406796,193.21,193.17,2.94]
[1735497832492,8.27156796,193.21,193.17,2.94]
[1735497833495,2.5926,193.2,193.17,5.5328]
[1735497834596,8.27156796,193.23,193.19,2.5926]
[1735497834896,8.27156796,193.23,193.2,2.94]
[1735497835298,10.86366796,193.23,193.2,5.5324]
[1735497835593,57.5818542,193.28,193.2,2.90347339]
[1735497835899,2.5917,193.27,193.21,8.27156796]
[1735497836793,11.50294194,193.29,193.23,8.27156796]
[1735497836992,8.27156796,193.28,193.21,8.27156796]
[1735497838396,8.27156796,193.28,193.22,2.5922]
[1735497838895,8.27156796,193.26,193.22,2.5922]
[1735497840300,8.27156796,193.24,193.22,2.94]
[1735497841396,8.27156796,193.26,193.22,2.94]
[1735497842501,8.27156796,193.24,193.21,2.94]
[1735497843802,8.27156796,193.24,193.21,5.5322]
[1735497844603,8.27156796,193.24,193.21,2.94]
[1735497844806,8.27156796,193.24,193.22,2.5922]
[1735497846202,8.27156796,193.26,193.22,2.5922]
[1735497846500,8.27156796,193.26,193.21,2.94]
[1735497846706,8.27156796,193.26,193.23,2.592]
[1735497848907,8.27156796,193.27,193.24,2.5919]
[1735497851705,8.27156796,193.27,193.25,2.5918]
[1735497851912,12.39710685,193.29,193.26,2.94]
[1735497852912,8.27156796,193.27,193.26,2.94]
[1735497855011,8.27156796,193.27,193.23,2.592]
[1735497855317,8.27156796,193.25,193.23,2.94]
[1735497858808,8.27156796,193.25,193.21,2.5923]
[1735497859120,8.27156796,193.25,193.22,2.94]
[1735497859619,8.27156796,193.23,193.19,2.5926]
[1735497859914,8.27156796,193.23,193.2,2.94]
[1735497860115,3.0712,193.28,193.2,2.94]
[1735497860310,8.27156796,193.22,193.2,2.94]
[1735497866620,8.27156796,193.24,193.2,2.94]
[1735497868321,8.27156796,193.24,193.21,2.5922]
[1735497868520,8.27156796,193.26,193.2,2.94]
[1735497869123,8.27156796,193.26,193.22,2.5921]
[1735497869418,65.85342216,193.28,193.2,11.21156796]
[1735497869921,65.85342216,193.28,193.22,8.27156796]
[1735497870415,8.27156796,193.28,193.24,2.5919]
[1735497870621,8.27156796,193.28,193.25,2.94]
[1735497871116,8.27156796,193.28,193.26,2.5917]
[1735497871619,4.12553889,193.29,193.26,2.5917]
[1735497873423,4.12553889,193.29,193.25,2.94]
[1735497873620,4.12553889,193.29,193.27,2.5915]
[1735497874821,4.12553889,193.29,193.25,2.94]
[1735497875018,17.18162605,193.32,193.28,2.5914]
[1735497875221,8.27156796,193.32,193.28,2.5914]
[1735497875822,8.27156796,193.32,193.26,8.27156796]
[1735497876014,10.86246796,193.32,193.27,2.5915]
[1735497876623,8.27156796,193.3,193.27,2.5915]
[1735497876822,8.27156796,193.3,193.18,42.59710139]
[1735497877123,8.27156796,193.26,193.19,4.07759042]
[1735497877330,8.27156796,193.22,193.16,8.27156796]
[1735497877518,8.27156796,193.22,193.18,5.5327]
[1735497877922,8.27156796,193.22,193.18,2.94]
[1735497878223,3.88930696,193.32,193.18,2.94]
[1735497878224,8.27156796,193.24,193.18,2.94]
[1735497879124,2.5917,193.26,193.22,2.5922]
[1735497879424,8.27156796,193.25,193.22,2.5922]